bitfinex/quotes_ETHUSD_20250508
["timestamp","ask_amount","ask_price","bid_price","bid_amount"]
[1746685611461,5.24598974,1906.3,1906.1,9.8455]
[1746685611762,5.24598974,1906.3,1906.1,11.14406223]
[1746685611938,5.24598974,1906.3,1906.2,5.382]
[1746685613662,5.54037491,1906.3,1906.2,5.382]
[1746685614233,5.24603924,1906.2,1905.9,1.21316579]
[1746685614541,5.24631446,1906.1,1906.0,5.382]
[1746685615546,5.54082185,1906.1,1906.0,5.382]
[1746685617449,5.54082185,1906.1,1906.0,11.462]
[1746685618569,5.54082185,1906.1,1906.0,6.08]
[1746685618870,0.29450739,1906.1,1906.0,22.11395665]
[1746685619036,0.8291,1906.8,1906.1,0.55]
[1746685619378,5.24496058,1906.6,1906.4,0.8122]
[1746685619539,5.24496058,1906.6,1906.4,3.86464859]
[1746685620166,0.8291,1907.0,1906.4,3.86464859]
[1746685620473,5.24497986,1906.6,1906.4,4.43326014]
[1746685621267,5.24521374,1906.5,1906.4,0.05244859]
[1746685621473,5.24563922,1906.4,1906.2,22.3336]
[1746685622645,5.24563922,1906.4,1906.2,24.15506694]
[1746685623284,10.49080712,1906.5,1906.2,24.15506694]
[1746685623487,5.24548887,1906.4,1906.3,2.41550669]
[1746685624266,5.24576404,1906.3,1906.2,27.15506694]
[1746685624568,5.24548887,1906.4,1906.2,24.15506694]
[1746685624880,5.24576404,1906.3,1906.2,22.3336]
[1746685626480,5.24576404,1906.3,1906.2,12.2536]
[1746685626691,5.24576404,1906.3,1906.2,11.462]
[1746685626854,5.24576404,1906.3,1906.2,6.08]
[1746685627064,5.24603924,1906.2,1906.1,6.08]
[1746685627567,5.54059805,1906.2,1906.1,6.08]
[1746685630290,5.24603924,1906.2,1906.1,6.08]
[1746685630588,5.24598739,1906.3,1906.1,7.461]
[1746685630793,5.24603924,1906.2,1906.1,7.461]
[1746685632398,5.24603924,1906.2,1906.1,11.46]
[1746685633283,5.54057422,1906.2,1906.1,11.46]
[1746685636364,5.54057422,1906.2,1906.1,11.44]
[1746685636894,6.35327422,1906.2,1906.1,6.06]
[1746685637074,5.24658971,1906.0,1905.9,5.38]
[1746685637465,5.24658971,1906.0,1905.9,11.44]
[1746685637658,6.00078971,1906.0,1905.9,6.06]
[1746685638072,6.29532469,1906.0,1905.9,6.06]
[1746685638273,5.24851729,1905.3,1905.2,6.06]
[1746685638759,5.24851729,1905.3,1905.2,6.8826]
[1746685638988,5.24851729,1905.3,1905.2,8.29100669]
[1746685640194,5.24851729,1905.3,1905.2,6.8826]
[1746685640500,5.24851729,1905.3,1905.2,6.06]
[1746685644388,5.24879277,1905.2,1905.1,6.06]
[1746685646005,5.24635752,1906.1,1905.1,18.0139573]
[1746685646298,5.24813611,1905.5,1905.3,1.82146694]
[1746685646491,5.24813611,1905.5,1905.4,6.06]
[1746685648818,5.24813611,1905.5,1905.4,11.442]
[1746685648970,5.24813611,1905.5,1905.4,11.82726897]
[1746685649173,5.24783985,1905.6,1905.4,11.82726897]
[1746685649411,5.24783985,1905.6,1905.4,13.19214256]
[1746685649570,5.24783985,1905.6,1905.5,0.7672]
[1746685650405,5.24783985,1905.6,1905.5,6.8272]
[1746685651575,5.24783985,1905.6,1905.5,6.06]
[1746685660709,5.24757671,1905.7,1905.5,6.06]
[1746685661331,5.24757671,1905.7,1905.6,6.06]
[1746685662838,5.24757671,1905.7,1905.6,6.8778]
[1746685663039,5.24757671,1905.7,1905.6,6.06]
[1746685663620,10.49468204,1905.8,1905.6,6.06]
[1746685664236,5.24741564,1905.7,1905.6,6.06]
[1746685664431,5.24724555,1905.8,1905.6,6.06]
[1746685665346,5.24724555,1905.8,1905.6,6.74778]
[1746685665511,5.24724555,1905.8,1905.7,6.06]
[1746685665712,5.24705089,1905.9,1905.7,6.06]
[1746685666355,5.2471403,1905.8,1905.7,6.06]
[1746685666710,5.2471403,1905.8,1905.7,11.441]
[1746685667712,5.24702111,1905.9,1905.7,11.441]
[1746685668549,5.2471403,1905.8,1905.7,11.441]
[1746685669532,6.0472403,1905.8,1905.7,11.441]
[1746685669755,6.34167601,1905.8,1905.7,6.06]
[1746685671460,5.24769101,1905.6,1905.5,6.06]
[1746685672958,5.54212672,1905.6,1905.5,6.06]
[1746685673460,6.35312672,1905.6,1905.5,6.06]
[1746685673682,6.35312672,1905.6,1905.3,6.06]
[1746685673683,5.24824183,1905.4,1905.3,6.06]
[1746685674068,5.24824183,1905.4,1905.3,6.45723674]
[1746685674567,5.54267754,1905.4,1905.3,6.45723674]
[1746685681097,5.24759056,1905.7,1905.3,15.52677419]
[1746685681305,5.24759056,1905.7,1905.3,15.47428881]
[1746685681600,6.04463305,1906.0,1905.3,8.40446041]
[1746685681807,5.24796641,1905.5,1905.4,6.06]
[1746685682161,5.24787021,1905.6,1905.4,6.06]
[1746685682386,10.49582525,1905.6,1905.4,6.06]
[1746685682799,5.24796641,1905.5,1905.4,6.06]
[1746685684190,5.24783631,1905.6,1905.4,6.06]
[1746685685386,5.24796641,1905.5,1905.4,6.06]
[1746685686098,5.54257509,1905.5,1905.4,6.06]
[1746685689001,5.54257509,1905.5,1905.4,11.439]
[1746685692009,0.29460868,1905.5,1905.4,12.69896367]
[1746685692321,6.03408533,1906.1,1905.5,3.0]
[1746685692503,6.03408533,1906.1,1905.7,5.24735725]
[1746685692797,11.28067244,1906.1,1905.8,5.379]
[1746685693001,5.24686499,1905.9,1905.8,5.379]
[1746685693173,6.3331135,1905.9,1905.8,5.379]
[1746685696519,5.5414135,1905.9,1905.8,5.379]
[1746685697817,5.24741564,1905.7,1905.6,6.06]
[1746685697992,5.24769101,1905.6,1905.5,6.06]
[1746685698589,5.54223952,1905.6,1905.5,6.06]
[1746685701990,5.54223952,1905.6,1905.5,17.56653335]
[1746685701991,0.29454851,1905.6,1905.5,17.56653335]
[1746685702191,0.29454851,1905.6,1905.5,27.64653335]
[1746685702816,5.24675823,1906.0,1905.5,26.81543335]
[1746685703003,5.24675823,1906.0,1905.6,0.82986635]
[1746685703204,5.24675823,1906.0,1905.7,5.379]
[1746685703519,5.24688067,1905.9,1905.7,5.379]
[1746685704226,5.2471403,1905.8,1905.7,5.379]
[1746685705030,5.24702377,1905.9,1905.7,5.379]
[1746685705400,5.2471403,1905.8,1905.7,5.379]
[1746685707195,5.24689818,1905.9,1905.7,5.379]
[1746685707425,5.24689818,1905.9,1905.8,6.06]
[1746685707932,5.54139708,1905.9,1905.8,6.06]
[1746685711935,5.24689818,1905.9,1905.8,6.06]
[1746685713350,5.99939818,1905.9,1905.8,6.06]
[1746685714050,5.2471403,1905.8,1905.7,5.379]
[1746685714215,5.54171614,1905.8,1905.7,5.379]
[1746685716823,6.32211614,1905.8,1905.7,5.379]
[1746685717531,5.24769101,1905.6,1905.5,6.06]
[1746685717706,5.54226685,1905.6,1905.5,6.06]
[1746685723735,5.24769101,1905.6,1905.5,6.06]
[1746685724730,5.24686499,1905.9,1905.6,0.7819]
[1746685724931,5.24668647,1906.0,1905.7,7.93393545]
[1746685725247,5.24668647,1906.0,1905.7,13.30993545]
[1746685725430,5.24590601,1906.3,1905.9,1.82146694]
[1746685725625,5.24499119,1906.6,1906.2,5.24603021]
[1746685725626,5.24517239,1906.6,1906.2,5.24603021]
[1746685725876,0.29441497,1906.5,1906.4,3.7847]
[1746685726070,0.29441497,1906.5,1906.4,9.89714936]
[1746685726443,0.29441497,1906.5,1906.4,10.38440138]
[1746685726640,0.29441497,1906.5,1906.4,7.73158172]
[1746685726641,5.53962871,1906.5,1906.4,7.73158172]
[1746685726879,5.24521374,1906.5,1906.4,7.73158172]
[1746685727967,5.24521374,1906.5,1906.4,7.2443297]
[1746685731562,5.24521374,1906.5,1906.4,6.4596297]
[1746685731962,5.24521374,1906.5,1906.4,6.06]
[1746685733820,5.24521374,1906.5,1906.4,6.45877911]
[1746685738407,5.24521374,1906.5,1906.4,6.06]
[1746685741585,5.53849996,1906.5,1906.4,6.06]
[1746685743084,6.07883924,1906.2,1906.1,6.06]
[1746685743785,6.07883924,1906.2,1905.9,6.06]
[1746685743786,5.24658971,1906.0,1905.9,6.06]
[1746685743985,5.24686499,1905.9,1905.8,6.06]
[1746685746389,6.00156499,1905.9,1905.8,6.06]
[1746685746804,6.29499449,1905.9,1905.8,6.06]
[1746685749412,5.2471403,1905.8,1905.7,11.434]
[1746685751804,5.2471403,1905.8,1905.7,6.06]
[1746685752226,5.54069214,1905.8,1905.7,6.06]
[1746685752826,5.24769101,1905.6,1905.5,6.06]
[1746685752992,5.24796641,1905.5,1905.4,6.06]
[1746685755627,5.54133419,1905.5,1905.4,6.06]
[1746685756331,5.24796641,1905.5,1905.4,6.06]
[1746685759108,6.01926641,1905.5,1905.4,6.06]
[1746685761939,6.31265846,1905.5,1905.4,6.06]
[1746685764404,5.54135846,1905.5,1905.4,6.06]
[1746685764950,5.24796641,1905.5,1905.4,6.06]
[1746685766731,5.54161311,1905.5,1905.4,6.06]
[1746685769613,5.24824183,1905.4,1905.3,5.373]
[1746685770645,5.54188853,1905.4,1905.3,5.373]
[1746685772764,5.24879277,1905.2,1905.1,7.88146694]
[1746685773543,5.24879277,1905.2,1905.1,9.32531805]
[1746685773842,5.24879277,1905.2,1905.1,10.10541805]
[1746685774333,5.24879277,1905.2,1905.1,10.59466959]
[1746685774979,5.24862545,1905.3,1905.1,10.64715627]
[1746685775152,5.24862545,1905.3,1905.2,0.7511]
[1746685775358,5.24862545,1905.3,1905.2,2.30216717]
[1746685775673,5.24815314,1905.5,1905.3,0.7511]
[1746685775840,5.24815314,1905.5,1905.4,5.371]
[1746685776042,5.24781444,1905.6,1905.4,6.1221]
[1746685776241,5.24781444,1905.6,1905.5,8.68316694]
[1746685776442,5.2475805,1905.7,1905.5,11.58583517]
[1746685776659,10.49525652,1905.7,1905.5,9.76436823]
[1746685776867,5.24769101,1905.6,1905.5,6.54925154]
[1746685777047,5.54237336,1905.6,1905.5,6.54925154]
[1746685777661,5.54237336,1905.6,1905.5,6.06]
[1746685778975,5.24824183,1905.4,1905.3,6.06]
[1746685780279,5.54292418,1905.4,1905.3,6.06]
[1746685782287,5.24851729,1905.3,1905.2,5.371]
[1746685782787,5.54319964,1905.3,1905.2,5.371]
[1746685785482,5.54319964,1905.3,1905.2,9.16456694]
[1746685785651,0.29468235,1905.3,1905.2,18.2770496]
[1746685786008,5.24796832,1905.5,1905.3,0.829]
[1746685786145,5.24784471,1905.6,1905.4,4.87394353]
[1746685786346,5.24784471,1905.6,1905.5,0.97671848]
[1746685787358,5.54267411,1905.6,1905.5,0.48739435]
[1746685788693,5.24784471,1905.6,1905.5,0.48739435]
[1746685788874,5.24759028,1905.7,1905.5,1.25269435]
[1746685789056,5.24769101,1905.6,1905.5,1.3051682]
[1746685789252,5.24769101,1905.6,1905.5,1.74173211]
[1746685789859,5.24769101,1905.6,1905.5,1.25269435]
[1746685790059,5.24769101,1905.6,1905.5,0.7653]
[1746685790767,5.54224421,1905.6,1905.5,0.7653]
[1746685790967,5.24796641,1905.5,1905.4,2.3105047]
[1746685791357,5.24796641,1905.5,1905.4,8.3705047]
[1746685792470,5.24796641,1905.5,1905.4,6.54903776]
[1746685792977,5.24796641,1905.5,1905.4,6.06]
[1746685795566,5.24796641,1905.5,1905.4,7.75247]
[1746685797895,5.24796641,1905.5,1905.4,8.24163487]
[1746685801820,5.24769101,1905.6,1905.4,8.24163487]
[1746685802123,5.24769101,1905.6,1905.4,10.11557762]
[1746685802294,5.24795396,1905.6,1905.4,10.11557762]
[1746685802476,5.24795396,1905.6,1905.4,9.62641275]
[1746685802900,5.24795396,1905.6,1905.4,9.57393694]
[1746685803060,5.24796641,1905.5,1905.4,9.57393694]
[1746685803265,5.24609127,1906.2,1905.4,19.65393694]
[1746685803464,5.24724156,1905.8,1905.7,1.82146694]
[1746685803779,5.24724156,1905.8,1905.7,7.88146694]
[1746685804418,5.24724156,1905.8,1905.7,8.66656694]
[1746685804716,5.2470198,1905.9,1905.7,8.66656694]
[1746685804878,5.2470198,1905.9,1905.7,8.71903517]
[1746685805068,5.2470198,1905.9,1905.7,10.12803869]
[1746685805477,5.24676909,1906.0,1905.8,6.06]
[1746685805863,5.24686499,1905.9,1905.8,6.06]
[1746685814993,5.54121576,1905.9,1905.8,6.06]
[1746685818333,5.2471403,1905.8,1905.7,6.06]
[1746685819036,5.54149107,1905.8,1905.7,6.06]
[1746685822403,5.54149107,1905.8,1905.7,12.85103613]
[1746685822404,0.29435077,1905.8,1905.7,12.85103613]
[1746685822741,5.24701542,1905.9,1905.7,12.79856694]
[1746685822924,5.24701542,1905.9,1905.7,13.2876227]
[1746685824461,5.24673992,1906.0,1905.9,0.7818]
[1746685825351,5.24673992,1906.0,1905.9,1.66283578]
[1746685826654,5.24673992,1906.0,1905.8,1.20245669]
[1746685827463,5.24686499,1905.9,1905.8,1.20245669]
[1746685829453,5.24686499,1905.9,1905.7,14.58886966]
[1746685829454,5.2471403,1905.8,1905.7,14.58886966]
[1746685829616,5.2471403,1905.8,1905.7,15.34716966]
[1746685829816,5.24696467,1905.9,1905.7,15.34716966]
[1746685830256,5.24696467,1905.9,1905.8,6.08]
[1746685834260,5.24673407,1906.0,1905.8,6.08]
[1746685834465,5.24673407,1906.0,1905.9,0.608]
[1746685834842,5.24673407,1906.0,1905.8,6.13246486]
[1746685835570,5.24636976,1906.1,1905.8,6.08]
[1746685835571,5.24643833,1906.1,1905.8,6.08]
[1746685835757,5.24673892,1906.0,1905.8,6.08]
[1746685836228,5.24673892,1906.0,1905.9,6.08]
[1746685837972,5.24673892,1906.0,1905.9,6.47996796]
[1746685838831,5.24673892,1906.0,1905.9,6.96918583]
[1746685839643,5.24619817,1906.2,1905.9,6.96918583]
[1746685839856,5.24649403,1906.1,1906.0,6.08]
[1746685840037,5.54114544,1906.1,1906.0,6.08]
[1746685844578,5.54114544,1906.1,1906.0,5.93256808]
[1746685847992,5.54114544,1906.1,1906.0,6.4217154]
[1746685859995,6.37334544,1906.1,1906.0,6.4217154]
[1746685861174,6.37334544,1906.1,1906.0,5.93256808]
[1746685863301,5.24658971,1906.0,1905.9,5.93256808]
[1746685863682,5.54124112,1906.0,1905.9,5.93256808]
[1746685864396,6.32794112,1906.0,1905.9,5.93256808]
[1746685868700,5.24796641,1905.5,1905.4,11.29456808]
[1746685869074,5.54261782,1905.5,1905.4,11.29456808]
[1746685870605,5.54261782,1905.5,1905.1,1.81835989]
[1746685870606,5.24879277,1905.2,1905.1,1.81835989]
[1746685871191,5.24867581,1905.3,1905.1,1.81835989]
[1746685871371,5.24879277,1905.2,1905.1,1.87084449]
[1746685871571,5.24879277,1905.2,1905.1,1.81835989]
[1746685874706,5.24906829,1905.1,1905.0,5.93256808]
[1746685875009,5.24934383,1905.0,1904.9,5.93256808]
[1746685875606,0.2940104,1905.2,1905.0,5.24922588]
[1746685875804,0.2940104,1905.2,1905.1,0.86879076]
[1746685876101,5.24879277,1905.2,1905.1,0.56871506]
[1746685876307,5.24906829,1905.1,1905.0,4.81835989]
[1746685876802,5.24906829,1905.1,1905.0,1.81835989]
[1746685881206,5.24894875,1905.2,1905.0,7.75092797]
[1746685883608,5.24867617,1905.3,1905.1,0.7531]
[1746685883817,5.24867617,1905.3,1905.2,7.17635989]
[1746685884222,5.24867617,1905.3,1905.2,11.29056808]
[1746685892821,6.03127617,1905.3,1905.2,11.29056808]
[1746685893017,6.32582923,1905.3,1905.2,11.29056808]
[1746685893222,6.32582923,1905.3,1905.2,5.358]
[1746685896231,6.32582923,1905.3,1905.2,11.29056808]
[1746685897146,5.54322923,1905.3,1905.2,5.93256808]
[1746685897445,6.31572923,1905.3,1905.2,5.93256808]
[1746685899449,6.02344383,1905.0,1904.9,5.93256808]
[1746685899936,6.31799689,1905.0,1904.9,5.93256808]
[1746685900945,6.31799689,1905.0,1904.7,0.39319041]
[1746685900946,5.249895,1904.8,1904.7,11.28656808]
[1746685901433,5.249895,1904.8,1904.7,5.354]
[1746685901816,5.54444806,1904.8,1904.7,5.354]
[1746685903643,5.249895,1904.8,1904.7,5.354]
[1746685904033,5.249895,1904.8,1904.7,7.17235989]
[1746685904345,5.249895,1904.8,1904.7,5.354]
[1746685904566,5.249895,1904.8,1904.7,7.17235989]
[1746685905251,5.249895,1904.8,1904.7,13.10492797]
[1746685906154,5.54453539,1904.8,1904.7,13.10492797]
[1746685908260,5.54453539,1904.8,1904.7,7.17235989]
[1746685908420,5.249895,1904.8,1904.7,7.17235989]
[1746685908621,5.249895,1904.8,1904.7,5.354]
[1746685910565,6.02537063,1904.7,1904.6,5.93256808]
[1746685910863,5.25072197,1904.5,1904.4,5.355]
[1746685912045,5.25072197,1904.5,1904.4,11.28756808]
[1746685912682,5.54515241,1904.5,1904.4,11.28756808]
[1746685913970,5.54515241,1904.5,1904.4,5.93256808]
[1746685914168,6.30685241,1904.5,1904.4,5.93256808]
[1746685915569,6.30685241,1904.5,1904.4,5.82278808]
[1746685917240,5.2515492,1904.2,1904.1,11.17778808]
[1746685918178,5.2515492,1904.2,1904.1,12.99614797]
[1746685920388,5.2515492,1904.2,1904.1,7.64114797]
[1746685920585,5.2515492,1904.2,1904.0,5.82278808]
[1746685920586,5.251825,1904.1,1904.0,5.82278808]
[1746685921082,5.25210084,1904.0,1903.9,5.82278808]
[1746685921282,5.25275744,1903.8,1903.6,7.95615989]
[1746685922009,5.2529285,1903.7,1903.6,7.95615989]
[1746685922160,5.2529285,1903.7,1903.6,13.77894797]
[1746685922360,5.2529285,1903.7,1903.6,14.17564322]
[1746685922598,5.25272146,1903.8,1903.6,14.17564322]
[1746685922797,5.2524821,1903.9,1903.6,15.59320754]
[1746685922995,5.2524821,1903.9,1903.8,1.81835989]
[1746685926499,5.2524821,1903.9,1903.8,7.64114797]
[1746685927505,5.2524821,1903.9,1903.8,7.73914627]
[1746685932107,6.0568821,1903.9,1903.8,7.73914627]
[1746685932468,5.2524821,1903.9,1903.8,7.73914627]
[1746685937301,5.25197803,1904.1,1903.8,8.51831322]
[1746685937641,5.25073955,1904.5,1904.1,0.7522]
[1746685937945,5.2511349,1904.4,1904.3,1.81835989]
[1746685938630,5.2511349,1904.4,1904.3,1.92775543]
[1746685940537,5.5458676,1904.4,1904.3,1.92775543]
[1746685941200,5.5458676,1904.4,1904.3,7.75054351]
[1746685941813,5.5458676,1904.4,1904.3,5.93218362]
[1746685942014,5.5458676,1904.4,1904.3,7.75054351]
[1746685944111,5.2511349,1904.4,1904.3,7.75054351]
[1746685949846,5.2511349,1904.4,1904.3,5.93218362]
[1746685950705,5.2506201,1904.6,1904.3,8.60925298]
[1746685951028,5.25099768,1904.4,1904.3,8.55674351]
[1746685951210,5.25087985,1904.5,1904.3,8.55674351]
[1746685951399,5.25099768,1904.4,1904.3,8.55674351]
[1746685951900,5.25099768,1904.4,1904.3,5.93218362]
[1746685957752,5.54561738,1904.4,1904.3,5.93218362]
[1746685962334,6.30391738,1904.4,1904.3,0.10939554]
[1746685962926,5.251825,1904.1,1904.0,11.16878808]
[1746685964557,6.040225,1904.1,1904.0,5.346]
[1746685964729,5.25265258,1903.8,1903.6,25.45459525]
[1746685964925,5.2529285,1903.7,1903.6,30.74169525]
[1746685965931,5.2529285,1903.7,1903.3,7.89835989]
[1746685966155,5.25348043,1903.5,1903.4,8.346]
[1746685966864,5.25337042,1903.6,1903.4,8.7323561]
[1746685967030,5.25337042,1903.6,1903.5,1.81835989]
[1746685968570,5.25308005,1903.7,1903.5,1.81835989]
[1746685971271,5.25320445,1903.6,1903.5,1.81835989]
[1746685971881,5.25308246,1903.7,1903.5,1.81835989]
[1746685972680,5.25320445,1903.6,1903.5,1.81835989]
[1746685973233,5.25309724,1903.7,1903.5,1.81835989]
[1746685974669,5.25320445,1903.6,1903.5,1.81835989]
[1746685977276,5.25320445,1903.6,1903.5,7.89835989]
[1746685978443,10.50623761,1903.7,1903.5,7.89835989]
[1746685978643,5.25279911,1903.8,1903.5,7.89835989]
[1746685978976,5.25320445,1903.6,1903.5,7.89835989]
[1746685983690,5.25294055,1903.7,1903.5,7.89835989]
[1746685983851,5.2527601,1903.8,1903.6,3.0]
[1746685983852,5.25267355,1903.8,1903.6,3.0]
[1746685984046,5.25267355,1903.8,1903.7,1.81835989]
[1746685985994,6.0339307,1904.1,1903.8,3.807]
[1746685985995,5.25192363,1904.1,1903.8,3.807]
[1746685986172,5.25192363,1904.1,1903.9,5.39951761]
[1746685986364,5.25192363,1904.1,1904.0,1.81835989]
[1746685986564,5.25192363,1904.1,1904.0,7.89835989]
[1746685986971,5.25170484,1904.2,1904.0,7.89835989]
[1746685987577,10.50350013,1904.2,1904.0,7.89835989]
[1746685987787,10.50350013,1904.2,1904.0,7.95087518]
[1746685987966,5.25170484,1904.2,1904.1,6.08]
[1746685992838,5.25099768,1904.4,1904.3,0.8253]
[1746685993095,5.25099768,1904.4,1904.3,5.342]
[1746685997657,5.25127343,1904.3,1904.2,1.81835989]
[1746685997962,5.25127343,1904.3,1904.2,7.15935989]
[1746685998163,5.25127343,1904.3,1904.2,8.53580821]
[1746685998362,5.25127343,1904.3,1904.2,14.56329588]
[1746685998881,5.25116541,1904.4,1904.2,14.56329588]
[1746685999267,5.25066182,1904.6,1904.3,9.8597]
[1746685999593,5.25066182,1904.6,1904.4,7.89835989]
[1746685999886,5.25066182,1904.6,1904.5,0.78983599]
[1746686001267,5.25072197,1904.5,1904.4,8.30040175]
[1746686002697,0.7942,1905.1,1904.5,3.762]
[1746686002923,5.24898979,1905.2,1904.9,1.81835989]
[1746686003124,5.24898979,1905.2,1905.1,1.81835989]
[1746686003328,5.24898979,1905.2,1905.1,7.89835989]
[1746686003535,5.24898979,1905.2,1905.1,6.08]
[1746686004035,5.24898979,1905.2,1905.1,7.89835989]
[1746686004337,5.24898979,1905.2,1905.1,9.29997588]
[1746686004542,5.24898979,1905.2,1905.1,7.48161599]
[1746686005921,6.04246467,1905.4,1905.1,9.29997588]
[1746686005922,5.24839222,1905.4,1905.1,9.29997588]
[1746686006087,5.24796641,1905.5,1905.1,9.35246208]
[1746686006289,5.24850819,1905.4,1905.1,9.35246208]
[1746686006521,5.24850819,1905.4,1905.2,0.93524621]
[1746686007305,5.24851729,1905.3,1905.2,0.93524621]
[1746686010323,5.24851729,1905.3,1905.2,7.01524621]
[1746686010630,0.3995225,1906.4,1905.2,7.01524621]
[1746686010631,5.24666645,1906.0,1905.5,0.55]
[1746686010795,5.24703929,1905.9,1905.7,3.0]
[1746686011001,5.24658971,1906.0,1905.7,4.70122599]
[1746686011222,5.2471403,1905.8,1905.7,4.70122599]
[1746686011729,5.24741564,1905.7,1905.6,12.1939]
[1746686011906,5.24741564,1905.7,1905.6,15.1939]
[1746686012108,5.24741564,1905.7,1905.6,14.419]
[1746686012745,5.24741564,1905.7,1905.6,11.419]
[1746686013302,5.99961564,1905.7,1905.6,11.419]
[1746686016325,5.99961564,1905.7,1905.2,5.62435989]
[1746686016326,5.24769101,1905.6,1905.5,6.08]
[1746686016725,5.24769101,1905.6,1905.0,10.08]
[1746686016726,5.24824183,1905.4,1905.3,6.08]
[1746686016909,5.24824183,1905.4,1905.3,11.418]
[1746686020439,6.01864183,1905.4,1905.3,11.418]
[1746686022125,5.24879277,1905.2,1905.1,6.08]
[1746686022317,5.24906829,1905.1,1905.0,11.418]
[1746686024026,5.24906829,1905.1,1905.0,11.81005645]
[1746686024326,6.02216829,1905.1,1905.0,11.418]
[1746686025426,6.02216829,1905.1,1905.0,5.338]
[1746686029840,5.24906829,1905.1,1905.0,5.338]
[1746686033444,5.5433355,1905.1,1905.0,5.338]
[1746686033845,6.3053355,1905.1,1905.0,5.338]
[1746686034652,5.24995347,1904.8,1904.5,18.917]
[1746686034855,5.25027258,1904.7,1904.6,6.08]
[1746686035723,5.54453979,1904.7,1904.6,6.08]
[1746686038560,5.25072197,1904.5,1904.4,5.334]
[1746686038860,5.25127343,1904.3,1904.2,11.415]
[1746686040564,5.25127343,1904.3,1904.2,11.80364288]
[1746686040967,5.25127343,1904.3,1904.2,11.415]
[1746686044768,6.05937343,1904.3,1904.2,6.08]
[1746686044967,6.04350084,1904.0,1903.9,5.336]
[1746686046464,5.25210084,1904.0,1903.9,5.336]
[1746686055286,5.25210084,1904.0,1903.9,11.416]
[1746686056484,5.25210084,1904.0,1903.9,12.2004]
[1746686061788,5.25197108,1904.1,1903.9,12.2004]
[1746686061993,5.25197108,1904.1,1904.0,1.81835989]
[1746686062714,0.7706,1904.7,1904.1,0.7782]
[1746686062860,0.7706,1904.7,1904.4,1.81835989]
[1746686062861,5.25083974,1904.5,1904.4,1.81835989]
[1746686063074,5.25099768,1904.4,1904.3,5.334]
[1746686064606,5.54563472,1904.4,1904.3,5.334]
[1746686066177,6.34703472,1904.4,1904.3,5.334]
[1746686070108,5.54563472,1904.4,1904.3,5.334]
[1746686076178,5.54563472,1904.4,1904.3,11.414]
[1746686078339,0.29463704,1904.4,1904.3,12.81946599]
[1746686078522,0.29463704,1904.4,1904.3,13.59676599]
[1746686078820,5.25062707,1904.6,1904.3,13.59676599]
[1746686078994,5.25072476,1904.5,1904.4,1.81835989]
[1746686080625,5.25072476,1904.5,1904.4,7.89835989]
[1746686080928,5.25072476,1904.5,1904.4,9.43987248]
[1746686084831,5.25062707,1904.6,1904.4,9.43987248]
[1746686084999,5.25026538,1904.7,1904.5,0.7569]
[1746686085199,5.25026538,1904.7,1904.6,7.89835989]
[1746686085615,5.25002565,1904.8,1904.6,7.89835989]
[1746686085810,5.25002565,1904.8,1904.7,5.329]
[1746686086699,5.24980979,1904.9,1904.8,0.8138]
[1746686086909,5.2496194,1904.9,1904.8,2.63215989]
[1746686087499,0.7766,1905.5,1904.8,7.89835989]
[1746686087694,5.24724342,1905.8,1905.4,1.81835989]
[1746686087919,5.24769101,1905.6,1905.5,12.22647383]
[1746686088106,5.24769101,1905.6,1905.5,11.409]
[1746686090102,5.24759049,1905.7,1905.5,11.409]
[1746686090302,5.24759049,1905.7,1905.6,1.1409]
[1746686091227,5.24759049,1905.7,1905.6,7.2209]
[1746686091419,5.24759049,1905.7,1905.6,6.08]
[1746686096183,5.24759049,1905.7,1905.6,6.8852]
[1746686096340,5.24717321,1905.8,1905.6,11.70355989]
[1746686097341,5.24717321,1905.8,1905.7,6.08]
[1746686097543,5.24717321,1905.8,1905.7,7.25035599]
[1746686100483,5.24717321,1905.8,1905.7,7.64006816]
[1746686103095,5.2468716,1905.9,1905.7,7.64006816]
[1746686103297,5.2468716,1905.9,1905.8,6.08]
[1746686107703,10.12,1907.1,1905.8,6.08]
[1746686107704,0.831,1906.7,1906.0,0.7707]
[1746686107905,5.24493863,1906.6,1906.2,3.0]
[1746686108113,5.24548887,1906.4,1906.3,0.3]
[1746686108964,5.24603924,1906.2,1906.1,11.405]
[1746686109170,5.24603924,1906.2,1906.1,6.08]
[1746686110902,5.24658971,1906.0,1905.9,5.325]
[1746686111296,6.02488971,1906.0,1905.9,11.405]
[1746686112292,6.02488971,1906.0,1905.9,6.08]
[1746686115096,6.31881463,1906.0,1905.9,6.08]
[1746686115944,6.02488971,1906.0,1905.9,6.08]
[1746686118007,6.31945059,1906.0,1905.9,6.08]
[1746686118631,5.54115059,1906.0,1905.9,6.08]
[1746686118834,0.29456088,1906.0,1905.9,14.1496972]
[1746686119021,5.24496078,1906.6,1906.3,3.0]
[1746686119232,5.24452923,1906.8,1906.5,3.0]
[1746686119537,5.24452923,1906.8,1906.5,3.05244611]
[1746686119734,5.24472854,1906.7,1906.5,5.28638218]
[1746686120059,5.24472854,1906.7,1906.6,6.08]
[1746686120607,6.02022854,1906.7,1906.6,6.08]
[1746686122322,5.24472854,1906.7,1906.6,6.08]
[1746686124061,5.24569575,1906.4,1906.2,6.0954]
[1746686124243,5.24576404,1906.3,1906.2,8.77697599]
[1746686124546,5.24576404,1906.3,1906.2,14.85697599]
[1746686129047,5.24566715,1906.4,1906.2,14.85697599]
[1746686129737,5.24576404,1906.3,1906.2,14.85697599]
[1746686130141,5.24565993,1906.4,1906.2,14.85697599]
[1746686130435,5.24565993,1906.4,1906.3,7.5656976]
[1746686130638,5.24536863,1906.5,1906.3,7.61815143]
[1746686130861,5.24536863,1906.5,1906.4,0.8002]
[1746686131900,5.24536863,1906.5,1906.4,1.39716736]
[1746686132041,5.24536863,1906.5,1906.4,2.48053523]
[1746686132869,5.24507296,1906.6,1906.4,8.61298598]
[1746686133046,5.24507296,1906.6,1906.5,6.08]
[1746686133443,5.24507296,1906.6,1906.5,6.65941195]
[1746686136480,5.24507296,1906.6,1906.5,11.97941195]
[1746686137778,5.24507296,1906.6,1906.5,13.36570993]
[1746686139248,5.24485183,1906.7,1906.5,13.36570993]
[1746686139579,5.24485183,1906.7,1906.6,6.08]
[1746686140085,5.53871235,1906.7,1906.6,6.65941195]
[1746686145799,6.31351235,1906.7,1906.6,6.65941195]
[1746686151259,6.31351235,1906.7,1906.6,0.57941195]